fUSD/lending_fUSD_20260616
["ID","MTS","AMOUNT","RATE_DAILY","PERIOD"]
[425140245,1781548255000,-206.4099863,0.00028492,5]
[425140240,1781548255000,-349.2905975,0.00028475,7]
[425140242,1781548255000,-156.61425118,0.00028492,7]
[425140244,1781548255000,-171.46954952,0.00028492,7]
[425140241,1781548255000,-309.78476144,0.00028492,7]
[425140238,1781548255000,-150.25079925,0.00028472,7]
[425140246,1781548255000,-365.85733755,0.00028492,2]
[425140243,1781548255000,-151.44861078,0.00028492,7]
[425140255,1781548255000,-466.0,0.00028493,2]
[425140249,1781548255000,-500.0,0.00028493,2]
[425140253,1781548255000,-466.0,0.00028493,2]
[425140248,1781548255000,-466.0,0.00028493,2]
[425140251,1781548255000,-248.14071597,0.00028493,2]
[425140247,1781548255000,-500.0,0.00028493,2]
[425140250,1781548255000,-466.0,0.00028493,2]
[425140252,1781548255000,-466.0,0.00028493,2]
[425140296,1781548256000,-1203.53129292,0.000285,2]
[425140295,1781548256000,-541.13529367,0.000285,2]
[425140302,1781548256000,-1947.6,0.00028632,30]
[425140298,1781548256000,-1203.5312929,0.000285,2]
[425140304,1781548256000,-737.26,0.00028632,30]
[425140303,1781548256000,-407.34,0.00028632,30]
[425140305,1781548256000,-1947.66,0.00028632,30]
[425140308,1781548256000,-207.05,0.00028642,2]
[425140313,1781548256000,-208.02,0.00028674,7]
[425140307,1781548256000,-737.2,0.00028632,30]
[425140309,1781548256000,-208.02,0.00028644,2]
[425140315,1781548256000,-602.64,0.000287,7]
[425140316,1781548256000,-207.05,0.00028704,30]
[425140311,1781548256000,-1947.66,0.00028655,7]
[425140300,1781548256000,-240.80122487,0.00028571,2]
[425140310,1781548256000,-1947.6,0.00028655,7]
[425140306,1781548256000,-407.31,0.00028632,30]
[425140297,1781548256000,-213.68027958,0.000285,2]
[425140285,1781548256000,-500.0,0.00028493,2]
[425140301,1781548256000,-226.11,0.0002863,2]
[425140317,1781548256000,-208.02,0.00028705,30]
[425140279,1781548256000,-500.0,0.00028493,2]
[425140280,1781548256000,-500.0,0.00028493,2]
[425140281,1781548256000,-500.0,0.00028493,2]
[425140284,1781548256000,-500.0,0.00028493,2]
[425140283,1781548256000,-500.0,0.00028493,2]
[425140282,1781548256000,-500.0,0.00028493,2]
[425140299,1781548256000,-1203.5312929,0.000285,2]
[425140286,1781548256000,-400.93207485,0.00028493,2]
[425140292,1781548256000,-596.1276553,0.000285,2]
[425140289,1781548256000,-207.5582428,0.00028493,2]
[425140293,1781548256000,-541.13529369,0.000285,2]
[425140287,1781548256000,-150.0,0.00028493,2]
[425140290,1781548256000,-596.12765532,0.000285,2]
[425140291,1781548256000,-596.1276553,0.000285,2]
[425140294,1781548256000,-541.13529367,0.000285,2]
[425140288,1781548256000,-150.0,0.00028493,2]
[425140312,1781548256000,-207.05,0.00028673,7]
[425140318,1781548256000,-207.05,0.00028735,2]
[425140319,1781548256000,-208.02,0.00028736,2]
[425140341,1781548256000,-708648.04585559,0.0002888,3]
[425140339,1781548256000,-207.05,0.00028859,7]
[425140342,1781548256000,-207.05,0.0002889,30]
[425140344,1781548256000,-500.0,0.00028896,17]
[425140343,1781548256000,-208.02,0.00028891,30]
[425140348,1781548256000,-207.05,0.00028921,2]
[425140345,1781548256000,-200.0,0.000289,2]
[425140350,1781548256000,-207.05,0.00028952,7]
[425140349,1781548256000,-208.02,0.00028922,2]
[425140347,1781548256000,-300.0,0.000289,7]
[425140351,1781548256000,-208.02,0.00028953,7]
[425140354,1781548256000,-407.31,0.00028966,2]
[425140353,1781548256000,-737.26,0.00028966,2]
[425140356,1781548256000,-40535.57923183,0.0002897,6]
[425140352,1781548256000,-407.34,0.00028966,2]
[425140355,1781548256000,-737.2,0.00028966,2]
[425140314,1781548256000,-501.0,0.00028692,3]
[425140335,1781548256000,-1947.66,0.00028821,2]
[425140337,1781548256000,-157.29309396,0.00028829,2]
[425140346,1781548256000,-2000.0,0.000289,2]
[425140340,1781548256000,-208.02,0.0002886,7]
[425140323,1781548256000,-208.02,0.00028767,7]
[425140334,1781548256000,-1947.6,0.00028821,2]
[425140322,1781548256000,-590.94204473,0.00028767,2]
[425140324,1781548256000,-151.89,0.00028767,53]
[425140320,1781548256000,-207.05,0.00028766,7]
[425140326,1781548256000,-207.05,0.00028797,30]
[425140325,1781548256000,-5662.65006226,0.0002878,2]
[425140327,1781548256000,-208.02,0.00028798,30]
[425140321,1781548256000,-889.66865003,0.00028767,30]
[425140330,1781548256000,-407.31,0.00028799,7]
[425140329,1781548256000,-737.26,0.00028799,7]
[425140328,1781548256000,-407.34,0.00028799,7]
[425140331,1781548256000,-737.2,0.00028799,7]
[425140332,1781548256000,-308.05,0.000288,7]
[425140336,1781548256000,-207.05,0.00028828,2]
[425140333,1781548256000,-202.0,0.0002882,30]
[425140338,1781548256000,-208.02,0.00028829,2]
[425140385,1781548257000,-5000.0,0.00029,2]
[425140393,1781548257000,-1808.97444308,0.00029,2]
[425140389,1781548257000,-200.0,0.00029,2]
[425140390,1781548257000,-200.0,0.00029,2]
[425140396,1781548257000,-500.0,0.00029,2]
[425140395,1781548257000,-200267.32419218,0.00029,3]
[425140387,1781548257000,-200.0,0.00029,2]
[425140386,1781548257000,-5000.0,0.00029,2]
[425140392,1781548257000,-42524.3077566,0.00029,2]
[425140388,1781548257000,-200.0,0.00029,2]
[425140391,1781548257000,-200.0,0.00029,2]
[425140399,1781548257000,-983.92,0.00029,2]
[425140398,1781548257000,-500.0,0.00029,2]
[425140397,1781548257000,-500.0,0.00029,2]
[425140404,1781548257000,-91072.83197874,0.00029,2]
[425140408,1781548257000,-500.0,0.00029,2]
[425140401,1781548257000,-841.93808547,0.00029,2]
[425140407,1781548257000,-216.09656886,0.00029,30]
[425140402,1781548257000,-165.62953097,0.00029,2]
[425140405,1781548257000,-500.0,0.00029,2]
[425140406,1781548257000,-500.0,0.00029,2]
[425140403,1781548257000,-2500.0,0.00029,30]
[425140378,1781548257000,-41026.77210203,0.00029,2]
[425140394,1781548257000,-323.0,0.00029,3]
[425140384,1781548257000,-9030.69242911,0.00029,2]
[425140362,1781548257000,-500.0,0.00029,2]
[425140381,1781548257000,-220.02544756,0.00029,2]
[425140400,1781548257000,-229.1577,0.00029,2]
[425140357,1781548257000,-176.07239045,0.00028973,14]
[425140359,1781548257000,-207.05,0.00028984,30]
[425140358,1781548257000,-208.02,0.00028984,30]
[425140360,1781548257000,-1947.6,0.00028987,30]
[425140361,1781548257000,-1947.66,0.00028987,30]
[425140366,1781548257000,-500.0,0.00029,2]
[425140365,1781548257000,-500.0,0.00029,2]
[425140363,1781548257000,-500.0,0.00029,2]
[425140367,1781548257000,-500.0,0.00029,2]
[425140364,1781548257000,-500.0,0.00029,2]
[425140379,1781548257000,-2628.53123069,0.00029,2]
[425140368,1781548257000,-500.0,0.00029,2]
[425140375,1781548257000,-588.829384,0.00029,7]
[425140370,1781548257000,-500.0,0.00029,2]
[425140374,1781548257000,-508.0,0.00029,10]
[425140371,1781548257000,-500.0,0.00029,2]
[425140373,1781548257000,-248.82,0.00029,2]
[425140372,1781548257000,-500.0,0.00029,2]
[425140376,1781548257000,-115271.48713652,0.00029,2]
[425140383,1781548257000,-580.6700119,0.00029,2]
[425140380,1781548257000,-1002.14628356,0.00029,2]
[425140382,1781548257000,-2324.96507076,0.00029,2]
[425140377,1781548257000,-588.829384,0.00029,14]
[425140369,1781548257000,-500.0,0.00029,2]
[425140410,1781548257000,-500.0,0.00029,2]
[425140439,1781548257000,-151.0,0.00029058,2]
[425140412,1781548257000,-500.0,0.00029,2]
[425140442,1781548257000,-151.0,0.00029058,2]
[425140440,1781548257000,-151.0,0.00029058,2]
[425140443,1781548257000,-151.0,0.00029058,2]
[425140438,1781548257000,-151.0,0.00029058,2]
[425140441,1781548257000,-151.0,0.00029058,2]
[425140447,1781548257000,-151.0,0.00029058,2]
[425140446,1781548257000,-151.0,0.00029058,2]
[425140450,1781548257000,-151.0,0.00029058,2]
[425140449,1781548257000,-151.0,0.00029058,2]
[425140448,1781548257000,-151.0,0.00029058,2]
[425140457,1781548257000,-1332.6,0.000291,30]
[425140437,1781548257000,-151.0,0.00029058,2]
[425140453,1781548257000,-151.0,0.00029058,2]
[425140452,1781548257000,-151.0,0.00029058,2]
[425140455,1781548257000,-207.05,0.00029077,30]
[425140456,1781548257000,-602.64,0.000291,7]
[425140459,1781548257000,-207.05,0.00029108,2]
[425140462,1781548257000,-197.0,0.00029114,30]
[425140463,1781548257000,-187.0,0.00029114,30]
[425140460,1781548257000,-247.0,0.00029114,30]
[425140458,1781548257000,-208.02,0.00029108,2]
[425140461,1781548257000,-153.0,0.00029114,30]
[425140464,1781548257000,-300.0,0.0002913,7]
[425140409,1781548257000,-500.0,0.00029,2]
[425140454,1781548257000,-208.02,0.00029077,30]
[425140436,1781548257000,-151.0,0.00029058,2]
[425140451,1781548257000,-151.0,0.00029058,2]
[425140433,1781548257000,-151.0,0.00029053,2]
[425140419,1781548257000,-2249.45615,0.00029,2]
[425140435,1781548257000,-151.0,0.00029058,2]
[425140415,1781548257000,-500.0,0.00029,2]
[425140411,1781548257000,-500.0,0.00029,2]
[425140414,1781548257000,-500.0,0.00029,2]
[425140413,1781548257000,-4000.0,0.00029,3]
[425140417,1781548257000,-2249.45615,0.00029,2]
[425140416,1781548257000,-2249.45615,0.00029,2]
[425140432,1781548257000,-151.0,0.00029053,2]
[425140427,1781548257000,-151.0,0.0002905,2]
[425140425,1781548257000,-151.0,0.0002905,2]
[425140421,1781548257000,-208.02,0.00029015,2]
[425140422,1781548257000,-207.05,0.00029015,2]
[425140418,1781548257000,-2249.45615,0.00029,2]
[425140445,1781548257000,-225.92,0.00029058,2]
[425140423,1781548257000,-208.02,0.00029046,7]
[425140430,1781548257000,-151.0,0.00029053,2]
[425140424,1781548257000,-207.05,0.00029046,7]
[425140428,1781548257000,-151.0,0.0002905,2]
[425140429,1781548257000,-151.0,0.0002905,2]
[425140420,1781548257000,-2249.45618,0.00029,2]
[425140426,1781548257000,-151.0,0.0002905,2]
[425140434,1781548257000,-151.0,0.00029053,2]
[425140431,1781548257000,-151.0,0.00029053,2]
[425140444,1781548257000,-151.0,0.00029058,2]
[425140511,1781548258000,-412.81997261,0.0002933,5]
[425140506,1781548258000,-737.2,0.000293,7]
[425140502,1781548258000,-308.05,0.000293,7]
[425140503,1781548258000,-407.34,0.000293,7]
[425140500,1781548258000,-585.829384,0.000293,14]
[425140499,1781548258000,-591.829384,0.000293,7]
[425140505,1781548258000,-407.31,0.000293,7]
[425140501,1781548258000,-591.829384,0.000293,14]
[425140498,1781548258000,-585.829384,0.000293,7]
[425140497,1781548258000,-350.0,0.00029252,13]
[425140518,1781548258000,-259.23973771,0.0002934,2]
[425140504,1781548258000,-737.26,0.000293,7]
[425140514,1781548258000,-300.50159849,0.0002933,7]
[425140521,1781548258000,-464.67714216,0.00029351,7]
[425140509,1781548258000,-302.89722157,0.0002933,7]
[425140508,1781548258000,-313.22850237,0.0002933,7]
[425140516,1781548258000,-159.08123096,0.00029331,7]
[425140515,1781548258000,-200.0,0.0002933,20]
[425140517,1781548258000,-231.47223342,0.00029331,7]
[425140513,1781548258000,-490.78676215,0.0002933,7]
[425140510,1781548258000,-342.93909905,0.0002933,7]
[425140512,1781548258000,-456.21724092,0.0002933,7]
[425140520,1781548258000,-523.93589625,0.00029347,7]
[425140530,1781548258000,-501.0,0.00029469,4]
[425140496,1781548258000,-207.14,0.00029232,7]
[425140522,1781548258000,-548.78600632,0.00029351,2]
[425140507,1781548258000,-282.49216196,0.0002933,7]
[425140495,1781548258000,-208.18,0.00029232,7]
[425140468,1781548258000,-5010.54194764,0.00029132,2]
[425140492,1781548258000,-217.0,0.00029204,30]
[425140519,1781548258000,-152.68505853,0.00029343,7]
[425140469,1781548258000,-5000.0,0.00029132,2]
[425140467,1781548258000,-200.0,0.0002913,7]
[425140465,1781548258000,-322.23059967,0.0002913,5]
[425140466,1781548258000,-300.0,0.0002913,20]
[425140481,1781548258000,-208.02,0.0002917,30]
[425140471,1781548258000,-5000.0,0.00029132,2]
[425140472,1781548258000,-5000.0,0.00029132,2]
[425140470,1781548258000,-5000.0,0.00029132,2]
[425140473,1781548258000,-407.34,0.00029133,30]
[425140478,1781548258000,-207.05,0.00029139,7]
[425140474,1781548258000,-737.26,0.00029133,30]
[425140475,1781548258000,-407.31,0.00029133,30]
[425140477,1781548258000,-208.02,0.00029139,7]
[425140476,1781548258000,-737.2,0.00029133,30]
[425140479,1781548258000,-1947.6,0.00029153,7]
[425140480,1781548258000,-1947.66,0.00029153,7]
[425140483,1781548258000,-208.02,0.00029201,2]
[425140494,1781548258000,-193.81,0.00029212,17]
[425140482,1781548258000,-207.05,0.0002917,30]
[425140493,1781548258000,-256.0,0.00029204,30]
[425140484,1781548258000,-207.05,0.00029201,2]
[425140486,1781548258000,-2112.0,0.00029204,30]
[425140487,1781548258000,-208.0,0.00029204,30]
[425140485,1781548258000,-2069.0,0.00029204,30]
[425140490,1781548258000,-154.0,0.00029204,30]
[425140489,1781548258000,-260.0,0.00029204,30]
[425140488,1781548258000,-717.0,0.00029204,30]
[425140531,1781548258000,-602.64,0.000295,7]
[425140491,1781548258000,-1311.0,0.00029204,30]
[425140523,1781548258000,-889.66865003,0.0002939,30]
[425140558,1781548258000,-308.05,0.000298,7]
[425140559,1781548258000,-407.34,0.00029802,7]
[425140567,1781548258000,-151.0,0.00029872,2]
[425140560,1781548258000,-737.26,0.00029802,7]
[425140562,1781548258000,-383.95,0.00029828,8]
[425140561,1781548258000,-737.2,0.00029802,7]
[425140565,1781548258000,-1359.0,0.00029867,2]
[425140564,1781548258000,-232.976,0.00029867,2]
[425140563,1781548258000,-150.0,0.00029863,2]
[425140566,1781548258000,-1228.0,0.00029867,2]
[425140568,1781548258000,-151.0,0.00029872,2]
[425140570,1781548258000,-151.0,0.00029872,2]
[425140577,1781548258000,-151.0,0.00029875,2]
[425140576,1781548258000,-151.25,0.00029874,2]
[425140569,1781548258000,-573.4,0.00029872,2]
[425140572,1781548258000,-151.0,0.00029872,2]
[425140579,1781548258000,-151.0,0.00029875,2]
[425140578,1781548258000,-151.0,0.00029875,2]
[425140574,1781548258000,-151.0,0.00029874,2]
[425140573,1781548258000,-151.0,0.00029874,2]
[425140575,1781548258000,-151.0,0.00029874,2]
[425140571,1781548258000,-152.36,0.00029872,2]
[425140584,1781548258000,-151.0,0.00029875,2]
[425140583,1781548258000,-151.0,0.00029875,2]
[425140582,1781548258000,-151.0,0.00029875,2]
[425140581,1781548258000,-151.0,0.00029875,2]
[425140527,1781548258000,-737.26,0.00029468,2]
[425140557,1781548258000,-10317.95,0.000298,2]
[425140545,1781548258000,-407.33,0.00029635,30]
[425140580,1781548258000,-151.0,0.00029875,2]
[425140551,1781548258000,-57346.08228156,0.000297,2]
[425140585,1781548258000,-151.0,0.00029875,2]
[425140525,1781548258000,-348.0,0.00029447,2]
[425140526,1781548258000,-407.34,0.00029468,2]
[425140529,1781548258000,-737.2,0.00029468,2]
[425140528,1781548258000,-407.31,0.00029468,2]
[425140532,1781548258000,-455.9,0.00029508,14]
[425140533,1781548258000,-260.7,0.00029508,14]
[425140534,1781548258000,-824.18,0.00029508,7]
[425140543,1781548258000,-588.829384,0.000296,14]
[425140542,1781548258000,-585.829384,0.000296,7]
[425140537,1781548258000,-671.95,0.00029527,7]
[425140539,1781548258000,-150.0,0.00029534,2]
[425140535,1781548258000,-819.0,0.00029508,7]
[425140536,1781548258000,-1126.99,0.00029527,7]
[425140524,1781548258000,-266.20869122,0.00029444,7]
[425140541,1781548258000,-588.829384,0.000296,7]
[425140540,1781548258000,-268.0,0.00029555,10]
[425140548,1781548258000,-737.2,0.00029635,30]
[425140553,1781548258000,-500.0,0.00029763,19]
[425140552,1781548258000,-317.56,0.000297,7]
[425140554,1781548258000,-1000.0,0.0002977,2]
[425140547,1781548258000,-407.31,0.00029635,30]
[425140550,1781548258000,-152.0,0.00029662,3]
[425140538,1781548258000,-877.34,0.00029527,30]
[425140556,1781548258000,-2150759.0589309,0.000298,2]
[425140544,1781548258000,-585.829384,0.000296,14]
[425140555,1781548258000,-500.0,0.0002977,2]
[425140546,1781548258000,-737.26,0.00029635,30]
[425140549,1781548258000,-3195.0,0.00029637,10]
[425140625,1781548259000,-469.84275355,0.00029902,7]
[425140613,1781548259000,-6717.21522335,0.000299,2]
[425140615,1781548259000,-6717.21522335,0.000299,2]
[425140616,1781548259000,-6717.21522335,0.000299,2]
[425140621,1781548259000,-6717.21522335,0.000299,2]
[425140617,1781548259000,-6717.21522335,0.000299,2]
[425140618,1781548259000,-6717.21522335,0.000299,2]
[425140619,1781548259000,-6717.21522335,0.000299,2]
[425140624,1781548259000,-564.98432391,0.00029902,7]
[425140623,1781548259000,-6717.21522335,0.000299,2]
[425140620,1781548259000,-6717.21522335,0.000299,2]
[425140626,1781548259000,-454.34583235,0.00029902,7]
[425140633,1781548259000,-448.37236018,0.00029903,7]
[425140634,1781548259000,-318.16246193,0.00029903,7]
[425140631,1781548259000,-163.27293081,0.00029903,7]
[425140635,1781548259000,-253.2231541,0.00029903,7]
[425140628,1781548259000,-619.22995891,0.00029902,5]
[425140627,1781548259000,-514.40864857,0.00029902,7]
[425140630,1781548259000,-450.75239774,0.00029902,7]
[425140629,1781548259000,-608.28965457,0.00029902,7]
[425140638,1781548259000,-462.94446683,0.00029903,7]
[425140639,1781548259000,-157.49295266,0.00029912,7]
[425140614,1781548259000,-6717.21522335,0.000299,2]
[425140647,1781548259000,-177.02708894,0.00029912,7]
[425140632,1781548259000,-212.9771611,0.00029903,7]
[425140622,1781548259000,-6717.21522335,0.000299,2]
[425140597,1781548259000,-151.42,0.00029879,2]
[425140610,1781548259000,-6717.21522335,0.000299,2]
[425140636,1781548259000,-195.90111186,0.00029903,7]
[425140586,1781548259000,-152.46,0.00029875,2]
[425140587,1781548259000,-15000.0,0.00029876,15]
[425140588,1781548259000,-151.0,0.00029879,2]
[425140590,1781548259000,-151.0,0.00029879,2]
[425140589,1781548259000,-151.0,0.00029879,2]
[425140592,1781548259000,-151.0,0.00029879,2]
[425140593,1781548259000,-151.0,0.00029879,2]
[425140591,1781548259000,-151.54,0.00029879,2]
[425140599,1781548259000,-573.4,0.00029879,2]
[425140594,1781548259000,-151.0,0.00029879,2]
[425140600,1781548259000,-211.23978581,0.00029896,7]
[425140598,1781548259000,-151.0,0.00029879,2]
[425140595,1781548259000,-151.0,0.00029879,2]
[425140596,1781548259000,-151.0,0.00029879,2]
[425140605,1781548259000,-591.829384,0.000299,14]
[425140601,1781548259000,-158.90281511,0.00029896,7]
[425140604,1781548259000,-591.829384,0.000299,7]
[425140612,1781548259000,-6717.21522335,0.000299,2]
[425140607,1781548259000,-602.64,0.000299,7]
[425140603,1781548259000,-57222.52826382,0.000299,2]
[425140602,1781548259000,-187.71062877,0.00029896,7]
[425140606,1781548259000,-76848.10149278,0.000299,2]
[425140609,1781548259000,-6717.21522335,0.000299,2]
[425140608,1781548259000,-6717.21522335,0.000299,2]
[425140611,1781548259000,-6717.21522335,0.000299,2]
[425140640,1781548259000,-518.47947542,0.00029912,2]
[425140637,1781548259000,-445.32584032,0.00029903,7]
[425140641,1781548259000,-205.89094585,0.00029912,7]
[425140673,1781548259000,-1007.26831774,0.0003,7]
[425140671,1781548259000,-221.50823603,0.00029999,7]
[425140674,1781548259000,-108673.0574145,0.0003,5]
[425140681,1781548259000,-7010.10833548,0.0003,2]
[425140677,1781548259000,-14584.38227881,0.0003,2]
[425140676,1781548259000,-164.7,0.0003,2]
[425140678,1781548259000,-200.0,0.0003,11]
[425140679,1781548259000,-5000.37893897,0.0003,3]
[425140675,1781548259000,-150.0,0.0003,2]
[425140680,1781548259000,-340.709999,0.0003,11]
[425140683,1781548259000,-62955.76581214,0.0003,2]
[425140684,1781548259000,-351.1369444,0.0003,2]
[425140693,1781548259000,-9999.97,0.0003,2]
[425140685,1781548259000,-40000.0,0.0003,15]
[425140686,1781548259000,-5000.0,0.0003,2]
[425140688,1781548259000,-5139.0,0.0003,7]
[425140687,1781548259000,-6978.32298321,0.0003,14]
[425140690,1781548259000,-22500.0,0.0003,2]
[425140692,1781548259000,-2499.98,0.0003,2]
[425140689,1781548259000,-2500.0,0.0003,31]
[425140691,1781548259000,-12500.0,0.0003,2]
[425140696,1781548259000,-22500.0,0.0003,2]
[425140697,1781548259000,-25000.0,0.0003,2]
[425140694,1781548259000,-25000.0,0.0003,2]
[425140695,1781548259000,-12500.0,0.0003,2]
[425140672,1781548259000,-1007.26831774,0.0003,7]
[425140668,1781548259000,-304.0452185,0.00029999,7]
[425140682,1781548259000,-1000.0,0.0003,10]
[425140664,1781548259000,-171.29654609,0.00029999,7]
[425140642,1781548259000,-200.27297557,0.00029912,7]
[425140666,1781548259000,-389.7033202,0.00029999,2]
[425140644,1781548259000,-151.7787557,0.00029912,7]
[425140645,1781548259000,-188.67425082,0.00029912,7]
[425140643,1781548259000,-429.19832265,0.00029912,7]
[425140646,1781548259000,-203.39309559,0.00029912,7]
[425140649,1781548259000,-155.29366516,0.00029915,7]
[425140648,1781548259000,-305.37011706,0.00029915,7]
[425140650,1781548259000,-370.63238327,0.00029915,7]
[425140652,1781548259000,-698.581195,0.00029919,7]
[425140655,1781548259000,-737.17,0.00029969,2]
[425140651,1781548259000,-155.66746344,0.00029915,7]
[425140654,1781548259000,-153.7061673,0.00029959,20]
[425140659,1781548259000,-221.07674386,0.00029989,7]
[425140656,1781548259000,-1000.0,0.0002997,2]
[425140667,1781548259000,-157.22505773,0.00029999,7]
[425140670,1781548259000,-206.31391762,0.00029999,7]
[425140665,1781548259000,-440.27894487,0.00029999,2]
[425140669,1781548259000,-184.45124002,0.00029999,7]
[425140660,1781548259000,-211.82838949,0.00029999,7]
[425140663,1781548259000,-172.75360003,0.00029999,7]
[425140661,1781548259000,-407.05292962,0.00029999,7]
[425140662,1781548259000,-159.91427372,0.00029999,7]
[425140653,1781548259000,-177.62520857,0.00029943,7]
[425140657,1781548259000,-500.0,0.0002997,2]
[425140658,1781548259000,-408.88705728,0.00029989,7]
[425140736,1781548260000,-500.0,0.00030082,14]
[425140739,1781548260000,-500.0,0.00030082,14]
[425140738,1781548260000,-500.0,0.00030082,14]
[425140729,1781548260000,-500.0,0.00030082,14]
[425140734,1781548260000,-500.0,0.00030082,14]
[425140728,1781548260000,-500.0,0.0003007,2]
[425140735,1781548260000,-500.0,0.00030082,14]
[425140740,1781548260000,-500.0,0.00030082,14]
[425140732,1781548260000,-500.0,0.00030082,14]
[425140730,1781548260000,-500.0,0.00030082,14]
[425140733,1781548260000,-500.0,0.00030082,14]
[425140731,1781548260000,-500.0,0.00030082,14]
[425140741,1781548260000,-500.0,0.00030082,14]
[425140763,1781548260000,-838.402,0.0003011,25]
[425140745,1781548260000,-500.0,0.00030082,14]
[425140744,1781548260000,-500.0,0.00030082,14]
[425140743,1781548260000,-500.0,0.00030082,14]
[425140742,1781548260000,-500.0,0.00030082,14]
[425140747,1781548260000,-500.0,0.00030082,14]
[425140748,1781548260000,-396.26359173,0.00030082,14]
[425140750,1781548260000,-588.829384,0.000301,7]
[425140749,1781548260000,-2875.62709623,0.000301,2]
[425140751,1781548260000,-585.829384,0.000301,7]
[425140752,1781548260000,-200.0,0.000301,11]
[425140754,1781548260000,-585.829384,0.000301,14]
[425140762,1781548260000,-200.0,0.0003011,2]
[425140737,1781548260000,-500.0,0.00030082,14]
[425140746,1781548260000,-500.0,0.00030082,14]
[425140723,1781548260000,-500.0,0.00030037,14]
[425140698,1781548260000,-2500.0,0.0003,2]
[425140724,1781548260000,-503.09,0.00030037,14]
[425140704,1781548260000,-2500.0,0.0003,2]
[425140702,1781548260000,-2500.0,0.0003,2]
[425140764,1781548260000,-247.0,0.00030114,30]
[425140700,1781548260000,-12500.0,0.0003,2]
[425140703,1781548260000,-12500.0,0.0003,2]
[425140699,1781548260000,-22500.0,0.0003,2]
[425140701,1781548260000,-25000.0,0.0003,2]
[425140706,1781548260000,-22500.0,0.0003,2]
[425140708,1781548260000,-12500.0,0.0003,2]
[425140716,1781548260000,-200.0,0.0003,2]
[425140705,1781548260000,-2648.94,0.0003,2]
[425140707,1781548260000,-25000.0,0.0003,2]
[425140710,1781548260000,-6776.41,0.0003,2]
[425140713,1781548260000,-2869.96,0.0003,2]
[425140715,1781548260000,-1802.39,0.0003,30]
[425140714,1781548260000,-650.0,0.0003,2]
[425140712,1781548260000,-15000.0,0.0003,2]
[425140709,1781548260000,-2500.0,0.0003,2]
[425140711,1781548260000,-10000.0,0.0003,2]
[425140717,1781548260000,-200.0,0.0003,30]
[425140719,1781548260000,-1023.27,0.0003,2]
[425140718,1781548260000,-6733.97,0.0003,2]
[425140720,1781548260000,-200.0,0.0003,2]
[425140721,1781548260000,-200.0,0.0003,2]
[425140726,1781548260000,-1368.71,0.00030039,2]
[425140727,1781548260000,-1000.0,0.0003007,2]
[425140722,1781548260000,-532.41738244,0.00030018,7]
[425140725,1781548260000,-504.0,0.00030037,2]
[425140753,1781548260000,-588.829384,0.000301,14]
[425140812,1781548260000,-200.0,0.00030137,2]
[425140760,1781548260000,-163.3065533,0.0003011,14]
[425140791,1781548260000,-500.0,0.00030137,3]
[425140795,1781548260000,-500.0,0.00030137,3]
[425140800,1781548260000,-500.0,0.00030137,3]